bitfinex/quotes_SOLUSD_20241202
["timestamp","ask_amount","ask_price","bid_price","bid_amount"]
[1733100416488,20.5672325,235.64,235.49,13.52679734]
[1733100418103,23.776884,235.63,235.49,13.52679734]
[1733100418297,0.5672325,235.62,235.49,13.52679734]
[1733100418506,0.5672325,235.67,235.54,12.68]
[1733100418831,0.5672325,235.72,235.55,0.84667362]
[1733100419206,0.5672325,235.72,235.57,20.0]
[1733100419415,0.5672325,235.72,235.58,13.52656505]
[1733100420396,17.52405209,235.79,235.63,70.0]
[1733100420594,0.5672325,235.78,235.64,0.84629391]
[1733100422009,20.0,235.74,235.61,6.6078]
[1733100422215,23.776884,235.72,235.58,0.84654362]
[1733100422402,0.5672325,235.71,235.58,0.84654362]
[1733100423618,24.3441165,235.75,235.58,0.84654362]
[1733100423806,20.0,235.72,235.58,0.84654362]
[1733100424005,0.5672325,235.71,235.58,0.84654362]
[1733100424415,0.5672325,235.74,235.61,12.68]
[1733100424598,15.7233,235.79,235.59,35.41004707]
[1733100424599,0.5672325,235.78,235.64,32.68]
[1733100424800,0.5672325,235.78,235.64,33.52631888]
[1733100425010,15.7233,235.79,235.67,12.68]
[1733100425215,0.5672325,235.9,235.69,12.68]
[1733100425428,15.224,235.84,235.7,0.84612594]
[1733100425630,0.5672325,235.83,235.7,0.84612594]
[1733100425998,15.224,235.84,235.7,0.84612594]
[1733100425999,15.224,235.84,235.74,12.68]
[1733100426203,6.1639,235.86,235.75,0.84592939]
[1733100426409,0.5672325,235.85,235.71,23.776884]
[1733100426606,0.5672325,235.85,235.67,27.1326]
[1733100427223,0.5672325,235.85,235.67,16.5246]
[1733100427429,20.0,235.81,235.67,16.5246]
[1733100427615,0.5672325,235.8,235.67,29.2046]
[1733100428122,20.0,235.81,235.67,29.2046]
[1733100428321,0.5672325,235.8,235.66,0.84626834]
[1733100428630,26.0602,235.76,235.61,16.2313]
[1733100428809,0.5672325,235.75,235.61,17.07783505]
[1733100429606,0.5672325,235.75,235.61,29.75783505]
[1733100430207,0.5672325,235.75,235.59,10.6116]
[1733100430834,20.0,235.71,235.57,12.68]
[1733100431012,0.5672325,235.7,235.57,12.68]
[1733100431530,15.8578,235.69,235.55,13.52662457]
[1733100431728,0.5672325,235.68,235.55,13.52662457]
[1733100432108,0.5672325,235.68,235.55,0.84662457]
[1733100432306,0.5672325,235.68,235.55,0.84673607]
[1733100432709,0.5672325,235.68,235.55,13.52673607]
[1733100433130,0.5672325,235.68,235.55,0.84673607]
[1733100433332,0.5672325,235.68,235.53,0.84672736]
[1733100433701,0.5672325,235.68,235.53,13.52672736]
[1733100435315,20.0,235.66,235.53,13.52672736]
[1733100435629,0.5672325,235.65,235.51,13.52674911]
[1733100437214,0.5672325,235.65,235.51,25.15991218]
[1733100438414,0.5672325,235.65,235.51,13.52674911]
[1733100439621,7.0913325,235.65,235.51,13.52674911]
[1733100439824,0.5672325,235.65,235.54,20.0]
[1733100440007,0.5672325,235.68,235.55,0.84670766]
[1733100440539,23.776884,235.67,235.53,0.84671041]
[1733100440839,0.5672325,235.66,235.53,0.84671041]
[1733100441146,24.3441165,235.68,235.53,0.84671041]
[1733100443720,20.0,235.65,235.5,28.3252]
[1733100444036,0.5672325,235.64,235.51,0.84685229]
[1733100449214,16.00704505,235.69,235.52,82.68]
[1733100449215,20.0,235.66,235.52,82.68]
[1733100449426,0.5672325,235.65,235.53,0.8467024]
[1733100450654,24.3441165,235.68,235.53,0.8467024]
[1733100452132,20.0,235.65,235.49,12.68]
[1733100452438,0.5672325,235.64,235.5,0.84685939]
[1733100452924,6.1963,235.63,235.5,0.84685939]
[1733100453117,0.5672325,235.62,235.5,0.84685939]
[1733100453933,0.14924505,235.54,235.5,0.84685939]
[1733100454146,0.14924505,235.54,235.51,70.0]
[1733100454317,0.14924505,235.54,235.52,13.52673432]
[1733100454817,0.02330298,235.54,235.52,13.52673432]
[1733100456430,0.02330298,235.54,235.53,23.2943]
[1733100458345,0.02330298,235.54,235.52,13.52673432]
[1733100459548,0.02330298,235.54,235.53,23.2943]
[1733100460823,0.00330298,235.54,235.53,23.2943]
[1733100461232,0.00330298,235.54,235.5,12.73]
[1733100461448,0.00330298,235.54,235.5,13.57687189]
[1733100464938,0.00330298,235.54,235.53,24.36316307]
[1733100465157,0.5672325,235.68,235.55,12.73]
[1733100465329,0.5672325,235.68,235.57,12.73]
[1733100465519,0.5672325,235.68,235.58,0.84660392]
[1733100466749,0.5672325,235.68,235.57,0.84660775]
[1733100467322,0.5672325,235.68,235.56,12.73]
[1733100469126,0.5672325,235.68,235.57,0.84666415]
[1733100470052,0.5672325,235.68,235.56,12.73]
[1733100472448,0.5672325,235.68,235.55,20.0]
[1733100472653,23.776884,235.67,235.52,13.5766798]
[1733100472959,0.5672325,235.66,235.52,13.5766798]
[1733100474145,0.5672325,235.66,235.52,21.05230697]
[1733100475230,20.5672325,235.66,235.54,12.73]
[1733100475538,20.5672325,235.66,235.55,0.84667463]
[1733100475739,0.5672325,235.68,235.56,12.73]
[1733100475956,0.5672325,235.68,235.57,0.8466316]
[1733100480345,0.5672325,235.68,235.55,13.57664131]
[1733100480537,0.5672325,235.68,235.55,0.84664131]
[1733100480733,0.5672325,235.68,235.53,11.46102094]
[1733100480948,0.5672325,235.68,235.52,12.73]
[1733100480949,20.0,235.64,235.52,12.73]
[1733100481131,0.5672325,235.66,235.53,8.3224233]
[1733100481334,0.5672325,235.67,235.55,20.20562717]
[1733100481654,0.5672325,235.67,235.56,0.84663569]
[1733100481958,21.9203,235.69,235.56,0.84663569]
[1733100481959,0.5672325,235.68,235.56,0.84663569]
[1733100482332,1.0583072,235.68,235.55,12.57663569]
[1733100482533,1.0583072,235.68,235.55,0.7027539]
[1733100482733,1.0583072,235.68,235.54,12.42327138]
[1733100483160,1.0583072,235.68,235.53,13.43276219]
[1733100483356,20.0,235.66,235.52,10.6145]
[1733100483655,1.05850734,235.65,235.52,10.6145]
[1733100484230,1.05850734,235.65,235.53,0.70306139]
[1733100484433,1.05841899,235.68,235.54,10.6139]
[1733100485137,20.0,235.66,235.54,10.6139]
[1733100485337,1.05847779,235.65,235.52,0.70308739]
[1733100485536,1.05847779,235.65,235.53,20.0]
[1733100485747,1.05847779,235.65,235.5,11.31875434]
[1733100486053,1.05847779,235.65,235.5,18.79438151]
[1733100486361,1.05847779,235.65,235.5,24.04875434]
[1733100488260,1.05847779,235.65,235.5,31.52438151]
[1733100488464,23.776884,235.64,235.5,24.04875434]
[1733100488669,1.05862955,235.63,235.5,24.04875434]
[1733100489861,23.776884,235.61,235.47,12.73]
[1733100490059,1.05875714,235.6,235.47,13.4336461]
[1733100490558,23.776884,235.59,235.45,0.70370554]
[1733100490763,15.5932,235.57,235.45,0.70370554]
[1733100490943,1.058875,235.56,235.45,0.70370554]
[1733100491468,1.058875,235.56,235.47,20.0]
[1733100491634,1.058875,235.56,235.43,13.92511442]
[1733100492550,23.776884,235.55,235.43,1.19511442]
[1733100492781,6.4391,235.53,235.43,0.4912235]
[1733100493075,1.05906482,235.52,235.43,0.4912235]
[1733100493775,23.776884,235.49,235.43,0.4912235]
[1733100493951,7.65360168,235.48,235.43,0.4912235]
[1733100494667,23.776884,235.47,235.43,0.4912235]
[1733100494859,1.05938517,235.46,235.43,0.4912235]
[1733100495564,20.0,235.45,235.43,0.4912235]
[1733100495763,1.05937952,235.47,235.43,0.4912235]
[1733100499176,6.5943,235.48,235.43,0.4912235]
[1733100499375,0.35448867,235.47,235.43,0.4912235]
[1733100500083,6.5943,235.48,235.43,0.4912235]
[1733100500376,6.0445,235.54,235.44,18.09402717]
[1733100500588,6.0445,235.54,235.45,0.84703666]
[1733100501349,15.4995,235.56,235.45,8.32266383]
[1733100501666,15.4995,235.56,235.45,0.84703666]
[1733100501868,0.35448867,235.55,235.45,0.84703666]
[1733100502581,0.35448867,235.55,235.44,10.6184]
[1733100503665,24.13137267,235.55,235.43,0.4912235]
[1733100504284,20.0,235.52,235.43,0.4912235]
[1733100504575,0.35448867,235.51,235.43,0.4912235]
[1733100506158,23.776884,235.49,235.43,0.4912235]
[1733100506357,0.35448867,235.48,235.43,0.4912235]
[1733100506670,23.776884,235.45,235.43,0.4912235]
[1733100506876,0.35448867,235.44,235.43,0.4912235]
[1733100507271,44.13137267,235.44,235.43,0.4912235]
[1733100511161,20.35448867,235.44,235.43,0.4912235]
[1733100511362,0.35448867,235.44,235.43,0.4912235]
[1733100511561,0.35448867,235.46,235.43,0.4912235]
[1733100511962,20.0,235.44,235.43,0.4912235]
[1733100512485,43.776884,235.44,235.43,0.4912235]
[1733100513293,44.13137267,235.44,235.43,0.4912235]
[1733100515179,49.13137267,235.44,235.43,0.4912235]
[1733100516495,23.776884,235.43,235.25,6.1507]
[1733100516676,23.776884,235.39,235.25,6.1507]
[1733100516868,0.35448867,235.38,235.25,6.1507]
[1733100517386,0.35448867,235.38,235.25,17.83674711]
[1733100519072,0.35448867,235.38,235.24,10.6271]
[1733100519261,16.4246,235.37,235.24,10.6271]
[1733100519457,24.13137267,235.36,235.24,10.6271]
[1733100523509,25.92203596,235.36,235.24,10.6271]
[1733100526379,25.92203596,235.36,235.2,22.31504711]
[1733100526572,25.92203596,235.36,235.21,11.68604711]
[1733100526788,25.92203596,235.36,235.2,22.31504711]
[1733100526991,25.92203596,235.36,235.2,10.629]
[1733100527577,20.0,235.33,235.2,10.629]
[1733100527771,24.13137267,235.32,235.2,10.629]
[1733100528102,24.13137267,235.32,235.2,18.1249782]
[1733100528283,0.35448867,235.32,235.21,7.4959782]
[1733100528487,0.35448867,235.32,235.23,7.4959782]
[1733100528669,0.35448867,235.33,235.24,7.4959782]
[1733100529097,16.4246,235.37,235.24,7.4959782]
[1733100529098,0.35448867,235.36,235.24,7.4959782]
[1733100529679,0.35448867,235.36,235.23,7.4959782]
[1733100530090,24.13137267,235.36,235.23,7.4959782]
[1733100530686,24.13137267,235.36,235.24,7.4959782]
[1733100531194,0.35448867,235.36,235.25,7.4959782]
[1733100531711,0.35448867,235.36,235.25,11.70648412]
[1733100531887,0.35448867,235.36,235.24,11.70648412]
[1733100532302,0.35448867,235.36,235.23,11.70648412]
[1733100532703,0.35448867,235.36,235.24,11.70648412]
[1733100532899,0.35448867,235.36,235.23,11.70648412]
[1733100533788,0.35448867,235.36,235.22,22.33478412]
[1733100534089,0.35448867,235.36,235.22,10.6283]
[1733100535189,24.13137267,235.36,235.22,10.6283]
[1733100537403,24.13137267,235.36,235.19,0.4912235]
[1733100537610,20.0,235.33,235.19,0.4912235]
[1733100537920,0.35448867,235.32,235.19,0.4912235]
[1733100538821,0.35448867,235.32,235.19,20.4912235]
[1733100539196,6.4036,235.31,235.19,20.4912235]
[1733100539383,0.35448867,235.3,235.19,20.4912235]
[1733100539792,15.2359,235.29,235.19,20.4912235]
[1733100539997,0.35448867,235.28,235.19,20.4912235]
[1733100540315,0.35448867,235.28,235.19,0.4912235]
[1733100540816,24.13137267,235.28,235.19,0.4912235]
[1733100542112,0.35448867,235.28,235.19,0.4912235]
[1733100542306,24.13137267,235.28,235.19,0.4912235]
[1733100543213,25.89192386,235.28,235.19,0.4912235]
[1733100543510,24.13137267,235.28,235.19,0.4912235]
[1733100543688,25.94780865,235.28,235.19,0.4912235]
[1733100545933,2.17092465,235.28,235.19,0.4912235]
[1733100546237,0.35448867,235.28,235.2,10.6292]
[1733100547108,0.35448867,235.28,235.19,0.4912235]
[1733100548331,24.13137267,235.28,235.19,0.4912235]
[1733100548528,45.434684,235.24,235.19,0.4912235]
[1733100548834,0.35448867,235.23,235.19,0.4912235]
[1733100549213,20.0,235.2,235.19,0.4912235]
[1733100549432,24.13137267,235.2,235.19,0.4912235]
[1733100553856,20.0,235.18,235.02,10.6373]
[1733100554016,0.35448867,235.17,235.02,10.6373]
[1733100554217,0.35448867,235.2,235.03,8.35401506]
[1733100554418,0.35448867,235.2,235.04,7.50535252]
[1733100554619,0.35448867,235.2,235.03,0.84866254]
[1733100554620,20.0,235.19,235.03,7.50535252]
[1733100554842,0.35448867,235.18,235.03,8.3539941]
[1733100555029,0.35448867,235.18,235.03,0.84864158]
[1733100555330,0.35448867,235.18,235.04,10.6364]
[1733100555734,24.13137267,235.18,235.04,10.6364]
[1733100559647,16.6008,235.17,235.04,10.6364]
[1733100559819,0.35448867,235.16,235.04,10.6364]
[1733100560029,0.35448867,235.16,235.0,167.6715]
[1733100560448,23.776884,235.13,235.0,161.6382]
[1733100560629,23.776884,235.13,235.0,151.0]
[1733100560630,0.35448867,235.12,235.0,151.0]
[1733100561640,0.35448867,235.13,235.0,151.0]
[1733100568479,23.776884,235.1,235.0,151.0]
[1733100568640,0.35448867,235.09,235.0,150.5]
[1733100569141,0.35448867,235.09,235.01,10.6378]
[1733100569342,0.35448867,235.1,235.01,10.6378]
[1733100569569,0.35448867,235.1,235.0,150.5]
[1733100569863,20.0,235.08,235.0,150.5]
[1733100570064,0.35448867,235.07,235.0,150.5]
[1733100570268,22.1737,235.06,235.0,150.5]
[1733100570473,0.35448867,235.05,235.0,150.5]
[1733100571246,0.35448867,235.07,235.0,150.5]
[1733100571444,0.35448867,235.12,235.0,150.5]
[1733100571967,0.35448867,235.12,235.01,10.6378]
[1733100572273,0.35448867,235.12,235.01,18.99192754]
[1733100572649,0.35448867,235.16,235.01,18.99192754]
[1733100572850,0.35448867,235.16,235.01,11.48657502]
[1733100573161,0.35448867,235.16,235.03,18.14225252]
[1733100573341,0.35448867,235.17,235.04,0.84849879]
[1733100573965,0.35448867,235.17,235.03,10.6369]
[1733100574178,0.02907345,235.11,235.03,10.6369]
[1733100574346,0.00083193,235.11,235.03,10.6369]
[1733100574971,0.00083193,235.11,235.0,150.5]
[1733100579782,16.0563,235.1,235.0,150.5]
[1733100579981,6.54248867,235.09,235.0,150.5]
[1733100591178,23.776884,235.08,235.0,150.5]
[1733100591494,0.35448867,235.07,235.0,150.5]
[1733100592274,0.35448867,235.08,235.0,150.5]
[1733100592596,20.0,235.05,235.0,150.5]
[1733100592889,0.35448867,235.04,235.0,150.5]
[1733100593689,0.35448867,235.05,235.0,150.5]
[1733100600779,20.35448867,235.05,235.0,150.5]
[1733100601398,16.1651,235.04,235.0,150.5]
[1733100601699,7.95844193,235.09,235.0,150.5]
[1733100601700,0.35448867,235.03,235.0,150.5]
[1733100601885,0.35448867,235.05,235.0,150.5]
[1733100602600,20.35448867,235.05,235.0,150.5]
[1733100603098,23.776884,235.04,235.0,150.5]
[1733100603310,0.35448867,235.03,235.0,150.5]
[1733100604471,0.35448867,235.05,235.0,150.5]
[1733100604796,0.35448867,235.08,235.0,150.5]
[1733100607889,20.0,235.06,235.0,150.5]
[1733100608086,0.35448867,235.05,235.0,150.5]
[1733100609070,24.13137267,235.05,235.0,150.5]
[1733100610782,20.0,235.02,235.0,150.5]
[1733100610981,24.13137267,235.01,235.0,150.5]
[1733100611189,20.35448867,235.01,235.0,150.5]
[1733100611580,72.00367267,235.01,235.0,138.49394982]
[1733100612194,72.00367267,235.01,235.0,101.29413045]
[1733100612501,72.00367267,235.01,235.0,71.03093045]
[1733100612796,72.00367267,235.01,235.0,69.22793045]
[1733100613803,67.00367267,235.01,235.0,69.22793045]
[1733100614177,36.67718867,235.01,235.0,69.22793045]
[1733100614492,0.35448867,235.01,235.0,69.22793045]
[1733100614701,0.35448867,235.04,235.0,69.22793045]
[1733100615674,20.0,235.01,235.0,69.22793045]
[1733100615899,20.35448867,235.01,235.0,69.22793045]
[1733100616885,20.0,235.01,235.0,69.22793045]
[1733100618777,19.5,235.01,235.0,69.22793045]
[1733100620896,43.276884,235.01,235.0,69.22793045]
[1733100621318,19.5,235.01,235.0,69.22793045]
[1733100623311,0.50917121,235.03,235.0,69.22793045]
[1733100623701,0.15468254,235.03,235.0,69.22793045]
[1733100624812,20.0,235.02,235.0,69.22793045]
[1733100625107,24.13137267,235.01,235.0,69.22793045]
[1733100625292,0.35448867,235.01,235.0,69.22793045]
[1733100625498,0.35448867,235.02,235.0,69.22793045]
[1733100625901,20.0,235.22,235.0,69.22793045]
[1733100626205,135.8,235.32,235.0,69.22793045]
[1733100626393,3.4974583,235.21,235.0,74.22793045]
[1733100627187,3.4974583,235.21,235.0,69.22793045]
[1733100628215,23.4974583,235.21,235.0,69.22793045]
[1733100628802,20.0,235.17,235.0,69.22793045]
[1733100629096,20.0,235.12,235.0,69.22793045]
[1733100629302,20.0,235.08,235.0,69.22793045]
[1733100629500,23.776884,235.07,235.0,69.22793045]
[1733100629696,20.0,235.04,235.0,69.22793045]
[1733100630216,20.0,235.01,235.0,69.22793045]
[1733100630402,43.776884,235.01,235.0,69.22793045]
[1733100631403,9.5369,235.16,235.0,69.22793045]
[1733100631918,20.0,235.08,235.0,69.22793045]
[1733100632220,20.0,235.04,235.0,69.22793045]
[1733100632398,23.776884,235.03,235.0,69.22793045]
[1733100633097,20.0,235.01,235.0,69.22793045]
[1733100633297,43.776884,235.01,235.0,69.22793045]
[1733100635423,3.4974583,235.13,235.0,69.22793045]
[1733100636810,23.4974583,235.13,235.0,69.22793045]
[1733100637017,20.0,235.09,235.0,69.22793045]
[1733100637219,20.0,235.01,235.0,69.22793045]
[1733100639142,23.776884,235.04,235.0,69.22793045]
[1733100639418,3.4974583,235.13,235.0,69.22793045]
[1733100640706,3.4974583,235.13,235.01,24.5672]
[1733100640919,5.2723828,235.13,235.02,5.0]
[1733100641090,1.7749245,235.13,235.02,5.0]
[1733100641293,3.4974583,235.19,235.02,5.0]
[1733100642218,3.4974583,235.19,235.05,10.0]
[1733100643409,3.4974583,235.19,235.05,5.0]
[1733100643611,23.776884,235.18,235.03,5.0]
[1733100643815,23.776884,235.14,235.03,5.0]
[1733100644125,3.4974583,235.19,235.1,5.0]
[1733100644328,1.77835379,235.23,235.11,9.0131]
[1733100644520,3.4974583,235.26,235.11,9.0131]
[1733100645621,23.776884,235.25,235.11,9.0131]
[1733100645831,3.4974583,235.26,235.11,9.0131]
[1733100646133,3.4974583,235.3,235.11,9.0131]
[1733100646511,20.0,235.28,235.11,9.0131]
[1733100646829,3.4974583,235.27,235.11,9.0131]
[1733100647035,23.776884,235.26,235.11,9.0131]
[1733100647328,20.0,235.19,235.11,9.0131]
[1733100647516,20.0,235.23,235.11,9.0131]
[1733100647517,20.0,235.15,235.11,9.0131]
[1733100648817,23.776884,235.14,235.11,9.0131]
[1733100649208,20.0,235.23,235.11,9.0131]
[1733100651040,7.5,235.35,235.12,23.0267]
[1733100651211,20.0,235.29,235.12,23.0267]
[1733100652413,20.0,235.25,235.12,23.0267]
[1733100652631,23.776884,235.24,235.12,23.0267]
[1733100652851,20.0,235.21,235.12,23.0267]
[1733100653019,23.776884,235.2,235.12,23.0267]
[1733100653224,20.0,235.17,235.12,23.0267]
[1733100654608,20.0,235.13,235.06,21.388]
[1733100655012,20.0,235.09,235.06,21.388]
[1733100656344,20.0,235.09,235.0,69.22793045]
[1733100656530,23.776884,235.08,235.0,69.22793045]
[1733100656836,20.0,235.05,235.0,69.22793045]
[1733100659946,23.776884,235.04,235.0,69.22793045]
[1733100661151,1.84668028,235.09,235.0,69.22793045]
[1733100661315,6.067,235.18,235.0,69.22793045]
[1733100661508,20.0,235.15,235.0,69.22793045]
[1733100662340,20.0,235.15,235.0,63.47003785]
[1733100662540,20.0,235.11,235.0,63.47003785]
[1733100662744,20.0,235.03,235.0,61.47003785]
[1733100662942,20.0,235.03,235.0,58.47003785]
[1733100663642,20.0,235.07,235.0,58.47003785]
[1733100663843,20.0,235.03,235.0,58.47003785]
[1733100670417,1.83433499,235.07,235.0,58.47003785]
[1733100670624,8.4127,235.14,235.0,58.47003785]
[1733100671245,13.0065,235.19,235.0,58.47003785]
[1733100671627,20.0,235.15,235.0,58.47003785]
[1733100672730,20.0,235.07,235.0,58.47003785]
[1733100673861,23.776884,235.1,235.0,58.47003785]
[1733100674057,20.0,235.07,235.0,58.47003785]
[1733100674226,1.80374905,235.18,235.06,32.056]
[1733100674630,1.80374905,235.18,235.07,5.0]
[1733100674828,1.80374905,235.18,235.11,5.0]
[1733100675022,1.80374905,235.18,235.12,31.7558]
[1733100675354,1.80374905,235.18,235.13,5.0]
[1733100675530,21.33723226,235.48,235.12,36.7558]
[1733100675531,45.3029,235.36,235.17,5.0]
[1733100675725,45.3029,235.36,235.18,12.837]
[1733100676351,59.95564196,235.36,235.18,12.837]
[1733100677037,23.776884,235.35,235.18,12.837]
[1733100677755,23.776884,235.31,235.18,12.837]
[1733100678050,20.0,235.24,235.18,12.837]
[1733100678347,20.0,235.2,235.18,12.837]
[1733100678734,20.0,235.2,235.12,44.0031]
[1733100678931,20.0,235.2,235.12,49.0031]
[1733100679132,59.95564196,235.36,235.14,5.0]
[1733100679336,59.95564196,235.36,235.16,5.0]
[1733100679660,59.95564196,235.36,235.13,5.0]
[1733100679840,59.95564196,235.36,235.13,10.0]
[1733100680041,59.95564196,235.36,235.13,5.0]
[1733100680338,59.95564196,235.36,235.14,5.0]
[1733100680767,20.0,235.32,235.14,5.0]
[1733100681136,23.776884,235.31,235.14,5.0]
[1733100681459,20.0,235.28,235.14,5.0]
[1733100681663,23.776884,235.23,235.14,5.0]
[1733100681966,20.0,235.24,235.16,5.0]
[1733100682335,20.0,235.33,235.16,5.0]
[1733100682653,59.95564196,235.36,235.17,5.0]
[1733100682866,59.95564196,235.36,235.19,10.0]
[1733100683048,1.81574196,235.36,235.2,30.3885]
[1733100683461,17.019793,235.37,235.2,30.3885]
[1733100684190,20.0,235.34,235.2,40.3885]
[1733100684353,46.56003508,235.42,235.2,40.3885]
[1733100684552,63.57947208,235.42,235.2,40.3885]
[1733100684954,63.57947208,235.42,235.2,30.3885]
[1733100685358,20.0,235.39,235.2,30.3885]
[1733100685757,20.0,235.35,235.2,30.3885]
[1733100685944,23.776884,235.34,235.2,30.3885]
[1733100686358,20.0,235.27,235.2,30.3885]
[1733100687347,20.0,235.27,235.2,35.3885]
[1733100688683,20.0,235.27,235.2,30.3885]
[1733100689073,20.0,235.27,235.2,35.3885]
[1733100691884,20.0,235.27,235.2,40.3885]
[1733100694163,1.78229715,235.29,235.2,40.3885]
[1733100694363,23.776884,235.38,235.2,40.3885]
[1733100694587,20.0,235.35,235.2,40.3885]
[1733100694754,23.776884,235.38,235.2,40.3885]
[1733100694755,63.50007492,235.42,235.24,10.0]
[1733100694954,18.78387492,235.42,235.27,5.0]
[1733100695273,1.76443792,235.42,235.27,10.0]
[1733100695471,17.014581,235.44,235.27,10.0]
[1733100695783,17.014581,235.44,235.27,5.0]
[1733100696184,20.0,235.41,235.27,5.0]
[1733100696482,20.0,235.41,235.29,5.0]
[1733100696885,20.0,235.44,235.29,5.0]
[1733100697187,1.79221582,235.44,235.3,12.2062]
[1733100697360,31.886,235.53,235.34,30.5156]
[1733100697780,12.2062,235.49,235.34,30.5156]
[1733100697967,33.67866759,235.53,235.34,30.5156]
[1733100698173,17.010994,235.52,235.34,30.5156]
[1733100698476,20.0,235.49,235.34,30.5156]
[1733100698685,43.776884,235.48,235.34,30.5156]
[1733100699581,43.776884,235.48,235.34,26.49988571]
[1733100699987,43.776884,235.48,235.3,12.2062]
[1733100700588,20.0,235.44,235.3,12.2062]
[1733100700776,23.776884,235.42,235.24,12.0712]
[1733100700981,20.0,235.39,235.24,12.0712]
[1733100701176,20.0,235.35,235.24,12.0712]
[1733100701367,20.0,235.39,235.24,12.0712]
[1733100701368,20.0,235.31,235.24,12.0712]
[1733100701768,20.0,235.27,235.24,12.0712]
[1733100702992,20.0,235.27,235.24,43.001]
[1733100703176,20.0,235.35,235.24,43.001]
[1733100703375,20.0,235.31,235.24,43.001]
[1733100704880,20.0,235.27,235.24,43.001]
[1733100705903,20.0,235.27,235.08,27.653918]
[1733100705904,20.0,235.23,235.18,32.1293]
[1733100708666,20.0,235.19,235.17,12.342]
[1733100710573,20.0,235.19,235.12,17.5811]
[1733100711596,20.0,235.15,235.12,12.5811]
[1733100711800,20.0,235.15,235.12,3.4293068]
[1733100712312,1.76756871,235.19,235.12,3.4293068]
[1733100712493,20.0,235.28,235.12,3.4293068]
[1733100712793,23.776884,235.23,235.13,5.0]
[1733100713175,20.0,235.2,235.13,5.0]
[1733100714397,20.0,235.2,235.12,3.4293068]
[1733100714986,20.0,235.16,235.12,3.4293068]
[1733100715378,20.0,235.16,235.08,30.5371]
[1733100718094,20.0,235.16,235.1,5.0]
[1733100718301,23.776884,235.27,235.12,5.0]
[1733100718502,30.9505,235.31,235.15,5.0]
[1733100719686,20.0,235.28,235.15,5.0]
[1733100719905,20.0,235.28,235.13,10.0]
[1733100720394,20.0,235.24,235.16,5.0]
[1733100720589,20.0,235.24,235.17,32.2567]
[1733100721322,20.0,235.2,235.1,10.0]
[1733100721819,20.0,235.2,235.1,5.0]
[1733100722124,20.0,235.2,235.08,5.0]
[1733100722288,20.0,235.2,235.1,5.0]
[1733100724223,20.0,235.2,235.1,32.4322]
[1733100724920,20.0,235.16,235.1,32.4322]
[1733100726708,20.0,235.12,235.07,12.3593]
[1733100726908,20.0,235.12,235.06,5.0]
[1733100727597,20.0,235.12,235.04,5.0]
[1733100727993,20.0,235.12,235.02,10.0]
[1733100729234,20.0,235.08,235.0,81.57913785]
[1733100729619,20.0,235.08,235.02,5.0]
[1733100730002,20.0,235.08,235.0,81.57913785]
[1733100730491,20.0,235.08,235.0,63.47003785]
[1733100730689,20.0,235.04,235.0,58.47003785]
[1733100731122,20.0,235.04,235.0,57.02003785]
[1733100731335,23.776884,235.13,235.0,57.02003785]
[1733100731702,23.776884,235.09,235.0,57.02003785]
[1733100731902,20.0,235.06,235.0,57.02003785]
[1733100732104,23.776884,235.05,235.0,57.02003785]
[1733100732308,20.0,235.02,235.0,50.72003785]
[1733100733713,20.0,235.02,235.0,40.593671]
[1733100734028,20.0,235.02,235.0,39.27469045]
[1733100734808,20.0,235.02,235.0,34.27469045]
[1733100735821,21.79459146,235.02,235.0,34.27469045]
[1733100736000,21.79459146,235.02,235.0,28.07469045]
[1733100736405,31.8573,235.17,235.01,10.0]
[1733100736805,33.69612435,235.17,235.03,5.0]
[1733100737018,33.69612435,235.17,235.03,10.0]
[1733100738425,20.0,235.14,235.03,10.0]
[1733100738930,20.0,235.1,235.03,10.0]
[1733100739911,20.0,235.1,235.05,5.0]
[1733100740112,23.776884,235.13,235.05,5.0]